fUSD/lending_fUSD_20250213
["ID","MTS","AMOUNT","RATE_DAILY","PERIOD"]
[352945128,1739454558533,-330.68098967,0.00014403,2]
[352945129,1739454558557,-700.0,0.00014438,2]
[352945130,1739454558580,-800.0,0.00014438,2]
[352945131,1739454558609,-163.94,0.00014457,2]
[352945132,1739454558632,-397.25824714,0.00014484,2]
[352945133,1739454558656,-26322.18624708,0.00014504,2]
[352945134,1739454569118,-1158.60375292,0.00014504,2]
[352945135,1739454569143,-1021.13372289,0.0001452,3]
[352945136,1739454569166,-150.0,0.00014571,2]
[352945137,1739454569192,-92.03852419,0.00014571,2]
[352945138,1739454602901,153.89593727,0.00014571,30]
[352945162,1739454632125,-23900.0,0.00013932,2]
[352945163,1739454632135,-800.0,0.000141,5]
[352945165,1739454632147,-1600.0,0.000142,5]
[352945167,1739454632156,-150.0,0.00014251,2]
[352945169,1739454632166,-2500.0,0.000143,5]
[352945172,1739454632176,-3300.0,0.000144,5]
[352945174,1739454632185,-4100.0,0.000145,5]
[352945176,1739454632195,-57.96147581,0.00014571,2]
[352945177,1739454632204,-800.0,0.000146,5]
[352945179,1739454632213,-800.0,0.000147,5]
[352945180,1739454632223,-800.0,0.000148,5]
[352945181,1739454632235,-150.0,0.00014847,2]
[352945182,1739454632246,-150.0,0.00014856,2]
[352945183,1739454632255,-150.0,0.00014857,2]
[352945184,1739454632264,-150.0,0.0001486,2]
[352945185,1739454632273,-150.0,0.00014861,2]
[352945186,1739454632283,-150.0,0.00014869,2]
[352945187,1739454632292,-150.0,0.00014869,2]
[352945188,1739454632303,-150.0,0.00014871,2]
[352945189,1739454632316,-150.0,0.00014875,2]
[352945190,1739454632327,-150.0,0.00014875,2]
[352945191,1739454632337,-150.0,0.00014878,2]
[352945192,1739454632347,-150.76613659,0.0001488,2]
[352945193,1739454632358,-424.16768691,0.0001488,2]
[352945194,1739454632367,-150.0,0.00014881,2]
[352945195,1739454632376,-2551.314056,0.00014881,2]
[352945196,1739454632386,-150.0,0.00014883,2]
[352945197,1739454632396,-150.0,0.00014883,2]
[352945198,1739454632405,-150.0,0.00014888,2]
[352945199,1739454632415,-150.0,0.00014889,2]
[352945200,1739454632425,-150.0,0.0001489,2]
[352945201,1739454632434,-150.0,0.00014891,2]
[352945202,1739454632443,-150.0,0.00014892,2]
[352945203,1739454632452,-150.0,0.00014893,2]
[352945204,1739454632462,-150.0,0.00014898,2]
[352945205,1739454632471,-150.0,0.000149,2]
[352945206,1739454632480,-800.0,0.000149,5]
[352945207,1739454632492,-150.0,0.00014902,2]
[352945209,1739454632502,-424.16768682,0.00014904,2]
[352945211,1739454632511,-2551.31405594,0.00014905,2]
[352945213,1739454632520,-389.03433998,0.00014912,2]
[352945215,1739454632530,-150.0,0.00014913,2]
[352945217,1739454632540,-150.0,0.00014916,2]
[352945219,1739454632550,-150.0,0.00014916,2]
[352945221,1739454632559,-150.0,0.00014923,2]
[352945223,1739454632569,-424.16768682,0.00014929,2]
[352945225,1739454632578,-150.0,0.00014929,2]
[352945227,1739454632587,-2551.31405594,0.0001493,2]
[352945229,1739454632597,-150.0,0.00014931,2]
[352945231,1739454632607,-500.0,0.00014932,2]
[352945233,1739454632617,-2000.0,0.00014932,2]
[352945235,1739454632627,-500.0,0.00014932,2]
[352945237,1739454632636,-200.0,0.00014932,2]
[352945239,1739454632645,-150.0,0.00014936,2]
[352945241,1739454632655,-150.0,0.0001494,2]
[352945243,1739454632669,-200.51428415,0.00014942,2]
[352945245,1739454632678,-150.0,0.00014949,2]
[352945247,1739454632689,-1850.531,0.00014952,2]
[352945249,1739454632699,-173.686,0.00014952,2]
[352945251,1739454632708,-150.0,0.00014953,2]
[352945253,1739454632717,-424.16768682,0.00014953,2]
[352945255,1739454632726,-2551.31405594,0.00014954,2]
[352945257,1739454632739,-150.0,0.00014955,2]
[352945259,1739454632749,-216.51242,0.0001496,2]
[352945261,1739454632759,-150.0,0.00014962,2]
[352945263,1739454632768,-150.0,0.00014964,2]
[352945265,1739454632777,-260.76136514,0.00014971,2]
[352945267,1739454632786,-960.33,0.00014971,2]
[352945269,1739454632796,-260.76136514,0.00014972,2]
[352945271,1739454632806,-150.0,0.00014973,2]
[352945273,1739454632815,-150.0,0.00014977,2]
[352945275,1739454632825,-424.16768682,0.00014978,2]
[352945276,1739454632834,-2551.31405594,0.00014978,2]
[352945277,1739454632844,-1113.44,0.00014979,2]
[352945279,1739454632854,-3664.6,0.00014979,2]
[352945281,1739454632864,-2753.3,0.00014979,2]
[352945283,1739454632873,-2889.2,0.00014979,2]
[352945285,1739454632884,-2298.11,0.00014979,2]
[352945287,1739454632893,-3816.69,0.00014979,2]
[352945289,1739454632903,-500.0,0.00014979,2]
[352945291,1739454632912,-2076.76,0.00014979,2]
[352945293,1739454632921,-500.0,0.00014979,2]
[352945294,1739454632931,-500.0,0.00014979,2]
[352945296,1739454632940,-1097.74,0.00014979,2]
[352945298,1739454632950,-2679.32,0.00014979,2]
[352945300,1739454632960,-500.0,0.00014979,2]
[352945302,1739454632969,-500.0,0.0001498,2]
[352945304,1739454632978,-500.0,0.0001498,2]
[352945306,1739454632989,-358.54825707,0.0001498,2]
[352945309,1739454633006,-143.77663694,0.0001498,2]
[352945312,1739454633026,-655.66,0.0001498,2]
[352945313,1739454633039,-500.0,0.0001498,2]
[352945316,1739454633057,-500.0,0.0001498,2]
[352945318,1739454633073,-973.35,0.0001498,2]
[352945321,1739454633089,-500.0,0.0001498,2]
[352945323,1739454633103,-144.92945673,0.0001498,2]
[352945326,1739454633121,-355.07054327,0.0001498,2]
[352945329,1739454633137,-600.17,0.0001498,2]
[352945331,1739454633154,-452.16889785,0.0001498,2]
[352945333,1739454633172,-686.04,0.0001498,2]
[352945334,1739454633186,-491.15055888,0.0001498,2]
[352945337,1739454633208,-8.84944112,0.0001498,2]
[352945340,1739454633223,-500.0,0.0001498,2]
[352945342,1739454633240,-484.08775828,0.0001498,2]
[352945345,1739454633261,-339.37224172,0.0001498,2]
[352945348,1739454633276,-245.80578495,0.0001498,2]
[352945351,1739454633299,-348.37421505,0.0001498,2]
[352945353,1739454633317,-243.45228595,0.0001498,2]
[352945355,1739454633365,-295.22771405,0.0001498,2]
[352945356,1739454633382,-500.0,0.0001498,2]
[352945357,1739454633397,-500.0,0.0001498,2]
[352945358,1739454633410,-857.27,0.0001498,2]
[352945359,1739454633423,-507.43425929,0.0001498,2]
[352945410,1739454638831,-500.0,0.00014979,2]
[352945411,1739454638841,-500.0,0.0001498,2]
[352945412,1739454638851,-500.0,0.0001498,2]
[352945413,1739454638861,-3795.36,0.0001498,2]
[352945414,1739454638870,-500.0,0.0001498,2]
[352945415,1739454638879,-181.22418333,0.0001498,2]
[352945421,1739454639248,-1340.33581667,0.0001498,2]
[352945422,1739454639258,-504.71106065,0.0001498,2]
[352945423,1739454639268,-802.352975,0.0001498,2]
[352945424,1739454639277,-500.0,0.0001498,2]
[352945425,1739454639287,-622.80806401,0.0001498,2]
[352945426,1739454639296,-3358.2,0.0001498,2]
[352945427,1739454639305,-793.96661243,0.0001498,2]
[352945428,1739454639317,-18.73338757,0.0001498,2]
[352945429,1739454639327,-156.718981,0.0001498,2]
[352945430,1739454639336,-500.0,0.0001498,2]
[352945431,1739454639346,-500.0,0.0001498,2]
[352945432,1739454639355,-2285.75,0.0001498,2]
[352945433,1739454639365,-2013.29,0.0001498,2]
[352945434,1739454639375,-500.0,0.0001498,2]
[352945435,1739454639384,-500.0,0.0001498,2]
[352945436,1739454639393,-1614.23,0.0001498,2]
[352945437,1739454639402,-537.04,0.0001498,2]
[352945438,1739454639412,-643.5,0.0001498,2]
[352945439,1739454639421,-1172.79,0.0001498,2]
[352945440,1739454639430,-414.751002,0.0001498,2]
[352945441,1739454639439,-500.0,0.0001498,2]
[352945442,1739454639448,-500.0,0.0001498,2]
[352945443,1739454639457,-1651.15,0.0001498,2]
[352945444,1739454639466,-583.44,0.0001498,2]
[352945445,1739454639475,-500.0,0.0001498,2]
[352945446,1739454639484,-2606.01,0.0001498,2]
[352945447,1739454639495,-1962.05,0.0001498,2]
[352945448,1739454639504,-500.0,0.0001498,2]
[352945449,1739454639513,-500.0,0.0001498,2]
[352945450,1739454639522,-2265.91,0.0001498,2]
[352945451,1739454639532,-872.42,0.0001498,2]
[352945452,1739454639541,-1795.99,0.0001498,2]
[352945453,1739454639550,-500.0,0.0001498,2]
[352945454,1739454639559,-500.0,0.0001498,2]
[352945455,1739454639568,-818.37,0.0001498,2]
[352945456,1739454639577,-1570.55,0.0001498,2]
[352945457,1739454639587,-500.0,0.0001498,2]
[352945458,1739454639596,-461.77479844,0.0001498,2]
[352945459,1739454639605,-1644.64,0.0001498,2]
[352945460,1739454639614,-2956.62,0.0001498,2]
[352945461,1739454639623,-500.0,0.0001498,2]
[352945462,1739454639632,-500.0,0.0001498,2]
[352945463,1739454639641,-2771.33,0.0001498,2]
[352945464,1739454639651,-500.0,0.0001498,2]
[352945465,1739454639663,-1180.37,0.0001498,2]
[352945466,1739454639672,-520.98,0.0001498,2]
[352945467,1739454639681,-2737.6,0.0001498,2]
[352945468,1739454639691,-500.0,0.0001498,2]
[352945469,1739454639700,-500.0,0.0001498,2]
[352945470,1739454639709,-2429.43,0.0001498,2]
[352945471,1739454639718,-500.0,0.0001498,2]
[352945472,1739454639728,-1542.74,0.0001498,2]
[352945473,1739454639737,-2607.81872734,0.0001498,2]
[352945474,1739454639757,-145.24127266,0.0001498,2]
[352945475,1739454639767,-500.0,0.0001498,2]
[352945476,1739454639776,-2978.73,0.0001498,2]
[352945477,1739454639785,-500.0,0.0001498,2]
[352945478,1739454639795,-2710.53,0.0001498,2]
[352945479,1739454639805,-500.0,0.0001498,2]
[352945480,1739454639815,-500.0,0.0001498,2]
[352945482,1739454639825,-500.0,0.0001498,2]
[352945483,1739454639834,-861.51,0.0001498,2]
[352945484,1739454639843,-500.0,0.0001498,2]
[352945485,1739454639854,-8167.16,0.0001498,2]
[352945486,1739454639864,-4277.72,0.0001498,2]
[352945487,1739454639873,-556.39,0.0001498,2]
[352945488,1739454639882,-2228.95,0.0001498,2]
[352945489,1739454639892,-500.0,0.0001498,2]
[352945490,1739454639902,-564.7,0.0001498,2]
[352945491,1739454639911,-3260.86,0.0001498,2]
[352945492,1739454639923,-834.67,0.0001498,2]
[352945493,1739454639933,-2080.25,0.0001498,2]
[352945494,1739454639943,-500.0,0.0001498,2]
[352945495,1739454639952,-3674.62,0.0001498,2]
[352945496,1739454639962,-500.0,0.0001498,2]
[352945497,1739454639972,-2133.27,0.0001498,2]
[352945498,1739454639981,-500.0,0.0001498,2]
[352945499,1739454639992,-500.0,0.0001498,2]
[352945500,1739454640001,-4022.41,0.0001498,2]
[352945501,1739454640011,-500.0,0.0001498,2]
[352945502,1739454640020,-4513.17,0.0001498,2]
[352945503,1739454640029,-6479.39,0.0001498,2]
[352945505,1739454640039,-500.0,0.0001498,2]
[352945507,1739454640049,-500.0,0.0001498,2]
[352945509,1739454640059,-500.0,0.0001498,2]
[352945511,1739454640068,-500.0,0.0001498,2]
[352945513,1739454640077,-770.52,0.0001498,2]
[352945515,1739454640086,-1757.2,0.0001498,2]
[352945517,1739454640095,-826.62,0.0001498,2]
[352945519,1739454640105,-500.0,0.0001498,2]
[352945521,1739454640114,-1701.94,0.0001498,2]
[352945522,1739454640123,-500.0,0.0001498,2]
[352945525,1739454640132,-1252.79,0.0001498,2]
[352945526,1739454640141,-507.78,0.0001498,2]
[352945528,1739454640151,-840.8,0.0001498,2]
[352945531,1739454640160,-495.34189017,0.0001498,2]
[352945533,1739454640170,-286.26720155,0.0001498,2]
[352945534,1739454640179,-993.15,0.0001498,2]
[352945535,1739454640189,-2744.88,0.0001498,2]
[352945536,1739454640200,-669.47883399,0.00014981,2]
[352945538,1739454640212,-500.0,0.00014981,2]
[352945540,1739454640222,-502.07789325,0.00014981,2]
[352945542,1739454640232,-502.92614776,0.00014981,2]
[352945544,1739454640242,-635.22,0.00014981,2]
[352945546,1739454640252,-501.4767912,0.00014981,2]
[352945548,1739454640261,-500.0,0.00014981,2]
[352945550,1739454640270,-1525.95,0.00014981,2]
[352945552,1739454640279,-500.0,0.00014981,2]
[352945554,1739454640289,-1379.91,0.00014981,2]
[352945556,1739454640298,-500.0,0.00014981,2]
[352945558,1739454640307,-500.0,0.00014981,2]
[352945560,1739454640316,-631.93,0.00014981,2]
[352945562,1739454640327,-500.0,0.00014981,2]
[352945564,1739454640338,-500.0,0.00014981,2]
[352945566,1739454640348,-500.0,0.00014981,2]
[352945568,1739454640358,-371.30349226,0.00014981,2]
[352945570,1739454640367,-500.0,0.00014981,2]
[352945572,1739454640376,-1251.18,0.00014981,2]
[352945574,1739454640386,-500.0,0.00014981,2]
[352945576,1739454640395,-537.06924038,0.00014981,2]
[352945578,1739454640404,-500.0,0.00014981,2]
[352945580,1739454640414,-500.0,0.00014981,2]
[352945582,1739454640423,-927.56,0.00014981,2]
[352945584,1739454640433,-527.13064871,0.00014981,2]
[352945586,1739454640442,-1764.26,0.00014981,2]
[352945588,1739454640451,-255.73531834,0.00014981,2]
[352945590,1739454640460,-500.0,0.00014981,2]
[352945592,1739454640470,-502.57245286,0.00014981,2]
[352945594,1739454640479,-502.44017519,0.00014981,2]
[352945600,1739454640650,-1283.69,0.00014981,2]
[352945601,1739454640660,-500.0,0.00014981,2]
[352945602,1739454640673,-1624.66,0.00014981,2]
[352945603,1739454640682,-500.0,0.00014981,2]
[352945604,1739454640691,-505.3734462,0.00014981,2]
[352945605,1739454640702,-595.78953645,0.00014981,2]
[352945606,1739454640714,-888.63,0.00014981,2]
[352945607,1739454640723,-500.0,0.00014981,2]
[352945608,1739454640732,-831.63,0.00014981,2]
[352945609,1739454640744,-500.0,0.00014981,2]
[352945610,1739454640754,-1660.02,0.00014981,2]
[352945611,1739454640763,-192.84853407,0.00014981,2]
[352945612,1739454640772,-741.98,0.00014981,2]
[352945613,1739454640782,-500.0,0.00014981,2]
[352945614,1739454640793,-501.33360632,0.00014981,2]
[352945615,1739454640803,-500.0,0.00014981,2]
[352945616,1739454640814,-955.26,0.00014981,2]
[352945617,1739454640823,-497.00472466,0.00014981,2]
[352945618,1739454640832,-772.48,0.00014981,2]
[352945619,1739454640841,-500.0,0.00014981,2]
[352945620,1739454640851,-225.10079105,0.00014981,2]
[352945621,1739454640860,-686.69,0.00014981,2]
[352945622,1739454640869,-500.0,0.00014981,2]
[352945623,1739454640878,-500.0,0.00014981,2]
[352945624,1739454640887,-527.02987357,0.00014981,2]
[352945625,1739454640898,-500.0,0.00014981,2]
[352945626,1739454640907,-1231.05,0.00014981,2]
[352945627,1739454640916,-500.0,0.00014981,2]
[352945628,1739454640925,-500.0,0.00014981,2]
[352945629,1739454640934,-799.46,0.00014981,2]
[352945630,1739454640943,-610.02,0.00014981,2]
[352945631,1739454640954,-500.0,0.00014981,2]
[352945632,1739454640963,-500.0,0.00014981,2]
[352945633,1739454640972,-600.0,0.00014981,2]
[352945634,1739454640981,-500.0,0.00014981,2]
[352945635,1739454640991,-1518.87,0.00014981,2]
[352945636,1739454641001,-545.44737856,0.00014981,2]
[352945637,1739454641011,-500.0,0.00014981,2]
[352945638,1739454641020,-500.0,0.00014981,2]
[352945639,1739454641030,-500.0,0.00014981,2]
[352945640,1739454641040,-500.0,0.00014981,2]
[352945641,1739454641051,-1135.88,0.00014981,2]
[352945642,1739454641060,-500.0,0.00014981,2]
[352945643,1739454641070,-500.0,0.00014981,2]
[352945644,1739454641079,-500.0,0.00014981,2]
[352945645,1739454641088,-921.36,0.00014981,2]
[352945646,1739454641097,-504.64430673,0.00014981,2]
[352945647,1739454641106,-450.12313584,0.00014981,2]
[352945648,1739454641116,-825.86,0.00014981,2]
[352945649,1739454641125,-500.59075686,0.00014981,2]
[352945650,1739454641135,-592.55,0.00014981,2]
[352945651,1739454641144,-500.0,0.00014981,2]
[352945652,1739454641154,-1920.13,0.00014981,2]
[352945653,1739454641163,-500.0,0.00014981,2]
[352945654,1739454641172,-500.0,0.00014981,2]
[352945655,1739454641181,-500.0,0.00014981,2]
[352945656,1739454641191,-500.0,0.00014981,2]
[352945657,1739454641200,-500.0,0.00014981,2]
[352945658,1739454641210,-503.04843873,0.00014981,2]
[352945659,1739454641219,-500.0,0.00014981,2]
[352945660,1739454641228,-500.0,0.00014981,2]
[352945661,1739454641238,-500.0,0.00014981,2]
[352945662,1739454641255,-500.0,0.00014981,2]
[352945663,1739454641265,-900.29,0.00014981,2]
[352945664,1739454641274,-560.79,0.00014981,2]
[352945665,1739454641284,-500.0,0.00014981,2]
[352945666,1739454641293,-509.83,0.00014981,2]
[352945667,1739454641302,-500.0,0.00014981,2]
[352945668,1739454641312,-500.0,0.00014981,2]
[352945669,1739454641321,-572.33,0.00014981,2]
[352945670,1739454641331,-914.16,0.00014981,2]
[352945671,1739454641340,-1084.85,0.00014981,2]
[352945672,1739454641349,-500.0,0.00014981,2]
[352945673,1739454641358,-854.86,0.00014981,2]
[352945674,1739454641368,-1737.11,0.00014981,2]
[352945675,1739454641377,-500.0,0.00014981,2]
[352945676,1739454641387,-500.0,0.00014981,2]
[352945677,1739454641396,-500.0,0.00014981,2]
[352945678,1739454641406,-683.45,0.00014981,2]
[352945679,1739454641416,-826.46,0.00014981,2]
[352945680,1739454641425,-1709.17,0.00014981,2]
[352945681,1739454641435,-639.21,0.00014981,2]
[352945682,1739454641444,-500.0,0.00014981,2]
[352945683,1739454641453,-1105.96,0.00014981,2]
[352945684,1739454641462,-500.0,0.00014981,2]
[352945685,1739454641471,-500.0,0.00014981,2]
[352945686,1739454641480,-500.0,0.00014981,2]
[352945687,1739454641488,-1410.73,0.00014981,2]
[352945688,1739454641501,-3546.89,0.00014981,2]
[352945689,1739454641511,-500.0,0.00014981,2]
[352945690,1739454641520,-536.44396803,0.00014981,2]
[352945691,1739454641530,-500.0,0.00014981,2]
[352945692,1739454641539,-627.85,0.00014981,2]
[352945693,1739454641548,-1620.77,0.00014981,2]
[352945694,1739454641557,-500.0,0.00014981,2]
[352945695,1739454641567,-502.10615212,0.00014981,2]
[352945696,1739454641576,-500.0,0.00014981,2]
[352945697,1739454641585,-924.93,0.00014981,2]
[352945698,1739454641594,-500.0,0.00014981,2]
[352945699,1739454641603,-578.24557691,0.00014981,2]
[352945700,1739454641613,-2477.26,0.00014981,2]
[352945701,1739454641621,-500.0,0.00014981,2]
[352945702,1739454641630,-1914.43,0.00014981,2]
[352945703,1739454641640,-500.0,0.00014981,2]
[352945704,1739454641649,-1626.07,0.00014981,2]
[352945705,1739454641659,-500.0,0.00014981,2]
[352945706,1739454641672,-500.0,0.00014981,2]
[352945707,1739454641681,-500.0,0.00014981,2]
[352945708,1739454641691,-1382.34,0.00014981,2]
[352945709,1739454641701,-500.0,0.00014981,2]
[352945710,1739454641712,-893.88,0.00014981,2]
[352945711,1739454641721,-427.53,0.00014981,2]
[352945712,1739454641731,-500.0,0.00014981,2]
[352945713,1739454641740,-1726.74,0.00014981,2]
[352945714,1739454641751,-1770.39,0.00014981,2]
[352945715,1739454641760,-2754.79,0.00014981,2]
[352945716,1739454641769,-777.8,0.00014981,2]
[352945717,1739454641779,-258.99349926,0.00014981,2]
[352945718,1739454641788,-932.97,0.00014981,2]
[352945719,1739454641797,-1684.91,0.00014981,2]
[352945720,1739454641807,-1747.07,0.00014981,2]
[352945721,1739454641816,-500.0,0.00014981,2]
[352945722,1739454641826,-517.55,0.00014981,2]
[352945723,1739454641835,-500.0,0.00014981,2]
[352945724,1739454641844,-500.0,0.00014981,2]
[352945725,1739454641853,-686.85,0.00014981,2]
[352945726,1739454641863,-501.71080473,0.00014981,2]
[352945727,1739454641872,-2725.41,0.00014981,2]
[352945728,1739454641881,-889.52,0.00014981,2]
[352945729,1739454641890,-4028.43,0.00014981,2]
[352945730,1739454641900,-500.77989212,0.00014981,2]
[352945731,1739454641909,-2201.62,0.00014981,2]
[352945732,1739454641919,-500.0,0.00014981,2]
[352945733,1739454641928,-500.0,0.00014981,2]
[352945734,1739454641937,-1539.84,0.00014981,2]
[352945735,1739454641946,-1347.48,0.00014981,2]
[352945736,1739454641957,-4466.89,0.00014981,2]
[352945737,1739454641966,-734.79,0.00014981,2]
[352945738,1739454641975,-500.0,0.00014981,2]
[352945739,1739454641984,-3227.44,0.00014981,2]
[352945740,1739454641995,-500.0,0.00014981,2]
[352945741,1739454642004,-3359.27,0.00014981,2]
[352945742,1739454642014,-4670.47,0.00014981,2]
[352945743,1739454642023,-2090.9,0.00014981,2]
[352945744,1739454642032,-692.37,0.00014981,2]
[352945745,1739454642042,-500.0,0.00014982,2]
[352945746,1739454642051,-500.0,0.00014982,2]
[352945747,1739454642060,-500.0,0.00014982,2]
[352945748,1739454642070,-500.0,0.00014982,2]
[352945749,1739454642079,-500.0,0.00014982,2]
[352945750,1739454642089,-500.0,0.00014982,2]
[352945751,1739454642098,-500.0,0.00014982,2]
[352945752,1739454642107,-500.0,0.00014982,2]
[352945753,1739454642117,-500.0,0.00014982,2]
[352945754,1739454642126,-500.0,0.00014982,2]
[352945755,1739454642135,-500.0,0.00014982,2]
[352945756,1739454642145,-500.0,0.00014982,2]
[352945757,1739454642154,-500.0,0.00014982,2]
[352945758,1739454642163,-541.27764644,0.00014982,2]
[352945759,1739454642172,-513.66711507,0.00014982,2]
[352945760,1739454642181,-500.0,0.00014982,2]
[352945761,1739454642190,-500.0,0.00014982,2]
[352945762,1739454642200,-500.0,0.00014982,2]
[352945763,1739454642210,-500.0,0.00014982,2]
[352945764,1739454642221,-500.0,0.00014982,2]
[352945765,1739454642232,-500.0,0.00014982,2]
[352945766,1739454642243,-500.0,0.00014982,2]
[352945767,1739454642252,-500.0,0.00014982,2]
[352945768,1739454642261,-670.83,0.00014982,2]
[352945769,1739454642271,-500.0,0.00014982,2]
[352945770,1739454642280,-500.0,0.00014982,2]
[352945771,1739454642289,-500.0,0.00014982,2]
[352945772,1739454642298,-500.0,0.00014982,2]
[352945773,1739454642308,-500.0,0.00014982,2]
[352945774,1739454642317,-500.0,0.00014982,2]
[352945775,1739454642327,-500.0,0.00014982,2]
[352945776,1739454642336,-340.10643537,0.00014982,2]
[352945777,1739454642346,-728.56,0.00014982,2]
[352945778,1739454642355,-500.0,0.00014982,2]
[352945779,1739454642364,-500.0,0.00014982,2]
[352945780,1739454642373,-500.0,0.00014982,2]
[352945781,1739454642382,-500.0,0.00014982,2]
[352945782,1739454642392,-500.0,0.00014982,2]
[352945783,1739454642401,-500.0,0.00014982,2]
[352945784,1739454642410,-500.0,0.00014982,2]
[352945785,1739454642419,-500.0,0.00014982,2]
[352945786,1739454642428,-500.0,0.00014982,2]
[352945787,1739454642437,-500.0,0.00014982,2]
[352945788,1739454642446,-500.0,0.00014982,2]
[352945789,1739454642456,-500.0,0.00014982,2]
[352945790,1739454642465,-500.0,0.00014982,2]
[352945791,1739454642474,-500.0,0.00014982,2]
[352945792,1739454642483,-174.526218,0.00014982,2]
[352945793,1739454642494,-500.0,0.00014982,2]
[352945794,1739454642503,-648.02,0.00014982,2]
[352945795,1739454642514,-500.0,0.00014982,2]
[352945796,1739454642524,-500.0,0.00014982,2]
[352945797,1739454642533,-500.0,0.00014982,2]
[352945798,1739454642542,-1200.0,0.00014982,2]
[352945799,1739454642551,-500.0,0.00014982,2]
[352945800,1739454642560,-500.0,0.00014982,2]
[352945801,1739454642570,-500.0,0.00014982,2]
[352945802,1739454642579,-500.0,0.00014982,2]
[352945803,1739454642588,-500.0,0.00014982,2]
[352945804,1739454642597,-662.98,0.00014982,2]
[352945805,1739454642607,-500.0,0.00014982,2]
[352945806,1739454642616,-500.0,0.00014982,2]
[352945807,1739454642625,-500.0,0.00014982,2]
[352945808,1739454642634,-500.0,0.00014982,2]
[352945809,1739454642643,-500.0,0.00014982,2]
[352945810,1739454642652,-557.25,0.00014982,2]
[352945811,1739454642666,-500.0,0.00014982,2]
[352945812,1739454642674,-502.36796716,0.00014982,2]
[352945813,1739454642683,-501.38977569,0.00014982,2]
[352945814,1739454642692,-500.0,0.00014982,2]
[352945815,1739454642702,-500.0,0.00014982,2]
[352945816,1739454642714,-500.0,0.00014982,2]
[352945817,1739454642722,-500.0,0.00014982,2]
[352945818,1739454642732,-500.0,0.00014982,2]
[352945819,1739454642746,-930.34,0.00014982,2]
[352945820,1739454642756,-500.0,0.00014982,2]
[352945821,1739454642764,-500.0,0.00014982,2]
[352945822,1739454642774,-500.0,0.00014982,2]
[352945823,1739454642784,-500.0,0.00014982,2]
[352945824,1739454642793,-500.0,0.00014982,2]
[352945825,1739454642802,-612.52,0.00014982,2]
[352945826,1739454642812,-500.0,0.00014982,2]
[352945827,1739454642822,-500.0,0.00014982,2]
[352945828,1739454642833,-500.0,0.00014982,2]
[352945829,1739454642843,-500.0,0.00014982,2]
[352945830,1739454642852,-500.0,0.00014982,2]
[352945831,1739454642861,-500.0,0.00014982,2]
[352945832,1739454642870,-500.0,0.00014982,2]
[352945833,1739454642879,-500.0,0.00014982,2]
[352945834,1739454642889,-500.0,0.00014982,2]
[352945835,1739454642898,-500.0,0.00014982,2]
[352945836,1739454642907,-500.0,0.00014982,2]
[352945838,1739454642916,-502.45310772,0.00014982,2]
[352945841,1739454642925,-500.0,0.00014982,2]
[352945844,1739454642934,-500.0,0.00014982,2]
[352945847,1739454642943,-501.21247284,0.00014982,2]